fUSD/lending_fUSD_20240127
["ID","MTS","AMOUNT","RATE_DAILY","PERIOD"]
[312864271,1706375454544,-151.0,0.00052055,14]
[312864272,1706375454553,-769.175716,0.00052055,14]
[312864273,1706375454562,-151.0,0.00052055,14]
[312864274,1706375454572,-769.175716,0.00052055,14]
[312864275,1706375454583,-769.175716,0.00052055,14]
[312864276,1706375454593,-769.175716,0.00052055,14]
[312864277,1706375454602,-769.175718,0.00052055,14]
[312864278,1706375454612,-340.87,0.00052055,30]
[312864279,1706375454621,-340.87,0.00052055,30]
[312864280,1706375454630,-340.87,0.00052055,30]
[312864281,1706375454640,-340.87,0.00052055,30]
[312864282,1706375454649,-340.87,0.00052055,30]
[312864283,1706375454659,-340.87,0.00052055,30]
[312864284,1706375454668,-340.87,0.00052055,30]
[312864285,1706375454677,-340.87,0.00052055,30]
[312864286,1706375454687,-340.87,0.00052055,30]
[312864287,1706375454696,-340.87,0.00052055,30]
[312864288,1706375454705,-340.87,0.00052055,30]
[312864289,1706375454715,-340.87,0.00052055,30]
[312864290,1706375454723,-340.87,0.00052055,30]
[312864291,1706375454733,-340.87,0.00052055,30]
[312864292,1706375454743,-340.87,0.00052055,30]
[312864293,1706375454753,-340.87,0.00052055,30]
[312864294,1706375454762,-340.87,0.00052055,30]
[312864295,1706375454771,-340.87,0.00052055,30]
[312864296,1706375454780,-340.87,0.00052055,30]
[312864297,1706375454790,-340.87,0.00052055,30]
[312864298,1706375454799,-410.69,0.00052055,30]
[312864299,1706375454808,-500.0,0.00052055,30]
[312864300,1706375454818,-1000.0,0.000521,2]
[312864301,1706375454828,-150.0,0.00052175,12]
[312864302,1706375454837,-153.93858529,0.00052205,53]
[312864303,1706375454846,-965.55568606,0.0005224,4]
[312864304,1706375454855,-5000.0,0.0005225,120]
[312864305,1706375454865,-155.0,0.000523,120]
[312864306,1706375454874,-247.0,0.000524,120]
[312864307,1706375454883,-150.0,0.00052487,2]
[312864308,1706375454892,-151.0127,0.00052498,59]
[312864309,1706375454902,-500000.0,0.000525,120]
[312864310,1706375454911,-199.31,0.00052603,30]
[312864311,1706375454920,-5000.0,0.00052625,120]
[312864312,1706375454929,-193.883,0.00052685,120]
[312864313,1706375454938,-200.00485165,0.000527,30]
[312864314,1706375454947,-151.0127,0.00052798,59]
[312864315,1706375454956,-662.12845121,0.00052799,14]
[312864316,1706375454965,-151.04966543,0.00052874,60]
[312864317,1706375454974,-150.20396505,0.00052886,60]
[312864318,1706375454984,-100000.0,0.000529,30]
[312864319,1706375454993,-247.0,0.000529,120]
[312864320,1706375455013,-716.4217656,0.000529,22]
[312864321,1706375455022,-150.55,0.000529,45]
[312864322,1706375455031,-158.0515412,0.00052906,60]
[312864323,1706375455040,-302.0,0.00052921,4]
[312864324,1706375455050,-218.75181877,0.00052933,12]
[312864325,1706375455059,-161.0027903,0.00052936,60]
[312864326,1706375455069,-193.883,0.00052986,120]
[312864327,1706375455078,-200.0,0.00052987,38]
[312864328,1706375455088,-50000.0,0.00053,43]
[312864329,1706375455098,-20000.0,0.00053,30]
[312864330,1706375455107,-575.10673362,0.00053,30]
[312864331,1706375455118,-1542.24014394,0.00053,120]
[312864332,1706375455127,-301.86,0.00053,120]
[312864333,1706375455137,-500000.0,0.00053,120]
[312864334,1706375455147,-5000.0,0.00053,120]
[312864335,1706375455159,-150.0,0.00053,23]
[312864336,1706375455168,-161.46810869,0.00053031,60]
[312864337,1706375455177,-150.20396505,0.00053039,60]
[312864338,1706375455187,-151.04966543,0.00053058,60]
[312864339,1706375455197,-22411.02233754,0.00053108,5]
[312864340,1706375455206,-1843.26471059,0.00053167,45]
[312864341,1706375455215,-3827.91262709,0.0005318,90]
[312864342,1706375455225,-584.54546916,0.00053187,60]
[312864343,1706375455235,-5200.0,0.000532,31]
[312864344,1706375455245,-156.00927671,0.00053201,15]
[312864345,1706375455255,-156.85207911,0.00053263,60]
[312864346,1706375455265,-193.883,0.00053288,120]
[312864347,1706375455274,-1000.0,0.000533,120]
[312864348,1706375455283,-252405.99901179,0.000533,31]
[312864349,1706375455293,-808426.59406951,0.000533,31]
[312864350,1706375455444,-193090.09566596,0.000533,31]
[312864351,1706375455754,-653.29876606,0.00022999,2]
[312864352,1706375455767,-215.01006027,0.00022999,2]
[312864353,1706375455777,-150.0,0.0002583,2]
[312864354,1706375455786,-8756.7564867,0.000533,31]
[312864355,1706375455798,-1227.33,0.000533,31]
[312864356,1706375455808,-1237.4,0.000533,31]
[312864357,1706375455820,-640.79833317,0.000533,31]
[312864358,1706375455831,-1045.89934814,0.000533,31]
[312864359,1706375455842,-495.58079881,0.000533,31]
[312864360,1706375455877,-340.87,0.00051233,30]
[312864361,1706375455887,-438.7107093,0.000533,31]
[312864362,1706375455898,-627.46528697,0.000533,31]
[312864363,1706375455909,-13040.6402259,0.000533,31]
[312864364,1706375455947,-694.5375725,0.000533,31]
[312864365,1706375455966,-402.65,0.0004589,2]
[312864366,1706375455974,-1117.85919106,0.000533,31]
[312864367,1706375456071,-577.2793438,0.00022796,2]
[312864368,1706375456083,-468.96,0.00022796,2]
[312864369,1706375456106,-6279.02062856,0.00022796,2]
[312864370,1706375456121,-459.91149139,0.00022796,2]
[312864371,1706375457495,-0.00020312,0.00022796,2]
[312864372,1706375457507,-550.69565633,0.00022796,2]
[312864373,1706375457518,-440.80572,0.00022796,2]
[312864374,1706375457529,-309.18,0.00022796,2]
[312864375,1706375457541,-10107.38929298,0.00022796,2]
[312864376,1706375457565,-1666.33552629,0.00022796,2]
[312864377,1706375457578,-34011.66760633,0.00022796,2]
[312864378,1706375457891,1086.51224081,0.00022079,2]
[312864379,1706375459676,492.21196358,0.00022079,2]
[312864380,1706375492524,8457.25633301,0.00020515,5]
[312864381,1706375623399,162.34773782,0.00022467,2]
[312864382,1706375671681,2973.974,0.00022465,2]
[312864387,1706375998563,150.02265663,1e-08,2]
[312864390,1706376553108,-3049.10614402,0.00022551,2]
[312864391,1706376553133,-1224.54646388,0.00022552,2]
[312864392,1706376553807,162.34773778,0.00022458,2]
[312864404,1706376631918,-521.86619454,0.00022553,2]
[312864405,1706376631928,-1262.71758815,0.00022554,2]
[312864406,1706376631937,-842.39000711,0.00022555,2]
[312864407,1706376631949,-1141.40303688,0.00022555,2]
[312864408,1706376631960,-284.52719653,0.00022555,2]
[312864409,1706376632037,-144.78508407,0.00022555,2]
[312864410,1706376632046,-182.63444538,0.00022557,2]
[312864411,1706376632057,-613.84332002,0.00022557,2]
[312864425,1706376637852,-654.70682192,0.00022557,2]
[312864426,1706376637905,-48.81541268,0.00022557,2]
[312864427,1706376637917,-150.0,0.00022566,2]
[312864428,1706376637927,-6950.2937007,0.00022567,2]
[312864429,1706376637936,-323.87692864,0.00022795,2]
[312864430,1706376637947,-500.0,0.00023,2]
[312864431,1706376637957,-282.89706329,0.00023,2]
[312864432,1706376637966,-847.06410669,0.00023,2]
[312864433,1706376637976,-153.21,0.00024658,2]
[312864434,1706376637985,-162.34773778,0.0002636,2]
[312864435,1706376637995,-855.29,0.0002636,2]
[312864436,1706376638005,-500.0,0.0003,2]
[312864437,1706376638015,-155.0,0.0003,2]
[312864438,1706376638024,-9049.34,0.0003015,2]
[312864439,1706376638034,-162.34773778,0.00030263,2]
[312864440,1706376638044,-6999.0126062,0.00033,15]
[312864441,1706376638053,-152.2,0.000335,2]
[312864442,1706376638063,-152.2,0.000335,2]
[312864443,1706376638073,-152.2,0.000335,2]
[312864444,1706376638082,-152.2,0.000335,2]
[312864445,1706376638092,-152.2,0.000335,2]
[312864446,1706376638101,-150.99,0.00033991,30]
[312864447,1706376638110,-295.21,0.0003409,2]
[312864448,1706376638120,-162.34773778,0.00034165,2]
[312864449,1706376638129,-150.0,0.00034884,2]
[312864450,1706376638139,-4096.68771749,0.00034999,4]
[312864451,1706376638148,-3000.0,0.00035,2]
[312864452,1706376638157,-294.77806135,0.00035432,2]
[312864453,1706376638167,-200.0,0.00035517,2]
[312864454,1706376638176,-250.0,0.00035679,2]
[312864455,1706376638185,-199.61,0.00035807,2]
[312864457,1706376638195,-183.49,0.00035862,5]
[312864459,1706376638204,-150.14,0.00035863,2]
[312864460,1706376638214,-150.15,0.00035875,15]
[312864461,1706376638223,-2500.0,0.00035884,3]
[312864462,1706376638233,-250.0,0.00035927,111]
[312864463,1706376638243,-9489.32882969,0.00035953,2]
[312864466,1706376638257,-2398.31170018,0.00035953,2]
[312864468,1706376638269,-4900.02599259,0.00035953,2]
[312864470,1706376638283,-435.87771536,0.00035953,2]
[312864473,1706376638299,-299.55621373,0.00035953,2]
[312864475,1706376638310,-6376.89954845,0.00035953,2]
[312864477,1706376638320,-1852.42,0.00035956,2]
[312864479,1706376638329,-250.0,0.00035982,2]
[312864481,1706376638338,-200.0,0.00036021,2]
[312864483,1706376638348,-150.0,0.00036025,2]
[312864485,1706376638357,-500.0,0.00036038,2]
[312864487,1706376638366,-2000.0,0.00036042,2]
[312864489,1706376638375,-186.88,0.00036089,2]
[312864491,1706376638385,-1000.0,0.00036106,2]
[312864493,1706376638394,-573.8,0.0003612,2]
[312864495,1706376638404,-158.6,0.00036153,2]
[312864497,1706376638414,-500.0,0.00036269,2]
[312864499,1706376638423,-200.0,0.00036332,2]
[312864501,1706376638433,-295.21,0.00036354,2]
[312864504,1706376638442,-2705.0,0.00036443,2]
[312864506,1706376638451,-2059.68,0.00036477,2]
[312864507,1706376638461,-5000.0,0.00036945,4]
[312864509,1706376638470,-461.6029,0.0003722,2]
[312864511,1706376638479,-1676.5457,0.0003722,2]
[312864514,1706376638489,-1408.25,0.00037308,10]
[312864515,1706376638498,-1173.54,0.00037308,10]
[312864517,1706376638507,-977.95,0.00037308,10]
[312864519,1706376638516,-19166.91135148,0.00037318,4]
[312864521,1706376638526,-3150.0703042,0.00037319,4]
[312864523,1706376638535,-4357.46407703,0.00037319,4]
[312864526,1706376638545,-952.02136852,0.0003732,15]
[312864528,1706376638561,-2053.33680304,0.0003732,15]
[312864530,1706376638573,-5053.007914,0.0003732,15]
[312864532,1706376638585,-1861.94252114,0.0003732,15]
[312864535,1706376638596,-10972.90829996,0.0003732,15]
[312864537,1706376638609,-22443.14817857,0.0003732,15]
[312864539,1706376638618,-155.51682144,0.0003732,15]
[312864635,1706376640606,-383.57266039,0.0003732,15]
[312864636,1706376640619,-703.34844154,0.0003732,15]
[312864637,1706376640629,-150.14,0.00037507,2]
[312864638,1706376640640,-17.7063843,0.00038068,2]
[312864639,1706376640653,-144.64135348,0.00038068,2]
[312864640,1706376640662,-150.0,0.00038356,2]
[312864641,1706376640671,-295.21,0.00038618,2]
[312864642,1706376640681,-553.73885091,0.00039,2]
[312864643,1706376640693,-661.41075,0.00039,2]
[312864644,1706376641401,-215.65863743,0.00039,2]
[312864645,1706376641410,-150.14,0.0003915,2]
[312864646,1706376641419,-150.0,0.00039366,2]
[312864647,1706376641429,-152.2,0.000394,3]
[312864648,1706376641438,-152.2,0.000394,3]
[312864649,1706376641447,-152.2,0.000394,3]
[312864650,1706376641456,-152.2,0.000394,3]
[312864651,1706376641469,-152.2,0.000394,3]
[312864652,1706376641478,-1968.0057,0.00039899,2]
[312864653,1706376641488,-150.15,0.00039985,15]
[312864655,1706376641497,-240.3423318,0.00039989,10]
[312864656,1706376641506,-814.96,0.00039989,10]
[312864657,1706376641515,-111491.70438591,0.00039999,2]
[312864679,1706376644520,-282.4270994,0.00038999,2]
[312864681,1706376644530,-18347.92197576,0.00039999,2]
[312864687,1706376644576,-7917.23267794,0.00039999,2]
[312864689,1706376644588,-4207.41639595,0.00039999,2]
[312864695,1706376644633,-8037.93344682,0.00039999,2]
[312864697,1706376644647,-22635.40044229,0.00039999,2]
[312864699,1706376644691,-364.9999919,0.00039999,2]
[312864700,1706376644748,-3991.91033047,0.00039999,2]
[312864701,1706376644760,-388.93617367,0.00039999,2]
[312864702,1706376644771,-1015.26085021,0.00039999,2]
[312864703,1706376644806,-895.48954311,0.00039999,2]
[312864716,1706376645986,-599.27979208,0.00039999,2]
[312864717,1706376646013,-2024.74899496,0.00039999,2]
[312864720,1706376659718,156.99494214,0.00022458,2]
[312864721,1706376662602,155.0,0.00022458,2]
[312864722,1706376665771,260.17747455,0.00022458,2]
[312864723,1706376865071,267.20284886,0.00022458,2]
[312864724,1706376865914,577.57329415,0.00022458,2]
[312864725,1706376872871,179.9034816,0.00022458,2]
[312864726,1706376878413,1034.8627852,0.00022458,2]
[312864727,1706376885059,173.40588489,0.00022458,2]
[312864736,1706377550018,235.27972236,0.00022458,2]
[312864737,1706377551889,155.6133095,0.00022458,2]
[312864738,1706377553284,169.00136356,0.00022436,2]
[312864739,1706377553397,155.0,0.00022458,2]
[312864740,1706377553448,155.0,0.00022458,2]
[312864741,1706377553761,301.46130813,0.00022458,2]
[312864742,1706377554776,177.21873968,0.00022458,2]
[312864743,1706377554875,155.0,0.00022458,2]
[312864745,1706377556701,155.0,0.00022458,2]
[312864746,1706377557323,155.0,0.00022458,2]
[312864747,1706377558227,155.0,0.00022458,2]
[312864748,1706377558293,192.82228455,0.00022458,2]
[312864749,1706377559638,155.0,0.00022458,2]
[312864750,1706377560742,155.0,0.00022458,2]
[312864751,1706377560950,155.0,0.00022458,2]
[312864752,1706377561190,156.0704384,0.00020212,2]
[312864753,1706377561414,155.0,0.00022458,2]
[312864754,1706377561487,155.0,0.00022458,2]
[312864755,1706377564471,164.53105547,0.00022458,2]
[312864756,1706377564678,155.0,0.00022458,2]
[312864757,1706377565572,168.49291128,5e-05,2]
[312864758,1706377568024,198.73026993,0.00022458,2]
[312864759,1706377571786,157.06134154,0.00022458,2]
[312864760,1706377573521,155.0,0.00022458,2]
[312864761,1706377574716,155.0,0.00022458,2]
[312864762,1706377574868,155.0,0.00022458,2]
[312864763,1706377575619,155.0,0.00022458,2]
[312864764,1706377576961,155.0,0.00022458,2]
[312864765,1706377577433,155.0,0.00022458,2]
[312864766,1706377577459,155.0,0.00022458,2]
[312864767,1706377578198,156.40278949,0.00022458,2]
[312864768,1706377578813,155.0,0.00022458,2]
[312864769,1706377579480,155.0,0.00022458,2]
[312864770,1706377582684,155.0,0.00022458,2]
[312864771,1706377590863,155.0,0.00022458,2]
[312864772,1706377592734,155.0,0.00022458,2]
[312864773,1706377595402,155.20448562,0.00022458,2]
[312864774,1706377595438,155.0,0.00022458,2]
[312864775,1706377595770,157.06134154,0.00022458,2]
[312864776,1706377596696,155.0,0.00022458,2]
[312864777,1706377596950,161.22573928,0.00022458,2]
[312864778,1706377597468,155.0,0.0002,2]
[312864779,1706377597503,155.0,0.00022458,2]
[312864780,1706377597656,163.41535368,0.00022458,2]
[312864781,1706377597705,299.99,0.00026876,12]
[312864782,1706377600666,155.30019509,0.00022458,2]
[312864783,1706377601424,155.0,0.00022458,2]
[312864784,1706377604674,-178.9252,0.00024799,2]
[312864785,1706377604695,-421.0748,0.00024896,2]
[312864786,1706377606299,155.0,0.00022458,2]
[312864787,1706377611770,157.06134154,0.00022458,2]
[312864788,1706377612737,190.56606393,0.00022458,2]
[312864789,1706377612880,155.0,0.00022458,2]
[312864790,1706377614698,156.01643056,0.00022458,2]
[312864791,1706377617447,155.0,0.00022458,2]
[312864792,1706377617473,158.04578553,0.00022458,2]
[312864793,1706377619448,155.0,0.0002,2]
[312864794,1706377624301,155.0,0.00022458,2]
[312864795,1706377625435,155.0,0.00022458,2]
[312864796,1706377630908,155.0,0.00022458,2]
[312864797,1706377635453,155.0,0.00022458,2]
[312864799,1706377637443,155.0,0.0002,2]
[312864800,1706377637810,157.06134154,0.00022458,2]
[312864801,1706377645570,155.0,0.00022458,2]
[312864802,1706377646879,155.0,0.00022458,2]
[312864803,1706377648302,309.95731837,0.00022458,2]
[312864804,1706377650370,175.99,0.00016712,2]
[312864805,1706377651458,155.0,0.00022458,2]
[312864806,1706377655445,155.0,0.0002,2]
[312864807,1706377659783,84.94062026,0.00022458,2]
[312864808,1706377659807,72.12072128,0.00022458,2]
[312864809,1706377660876,155.0,0.00022458,2]
[312864810,1706377671444,155.0,0.0002,2]
[312864811,1706377673454,155.0,0.00022458,2]
[312864812,1706377677784,157.06134154,0.00022458,2]
[312864813,1706377678879,206.68655297,0.00022458,2]
[312864814,1706377689453,170.77267514,0.00022458,2]
[312864815,1706377691456,155.0,0.0002,2]
[312864816,1706377695790,157.06134154,0.00022458,2]
[312864818,1706377713809,157.06134154,0.00022458,2]
[312864819,1706377733791,157.06134154,0.00022458,2]
[312864820,1706377753797,157.06134154,0.00022458,2]
[312864821,1706377757403,-155.09169479,0.0002469,2]
[312864822,1706377769793,207.0064636,0.00022458,2]
[312864823,1706377773105,-154.66980188,0.00024688,2]
[312864826,1706377832226,-155.0,0.00024682,2]
[312864827,1706377832237,-155.0,0.00024682,2]
[312864828,1706377832247,-155.0,0.00024683,2]
[312864829,1706377832258,-155.0,0.00024684,2]
[312864830,1706377832269,-155.0,0.00024684,2]
[312864831,1706377832278,-155.0,0.00024684,2]
[312864832,1706377832287,-203.04824283,0.00024684,2]
[312864833,1706377832296,-155.0,0.00024685,2]
[312864834,1706377832305,-155.0,0.00024685,2]
[312864835,1706377832315,-159.09532459,0.00024685,2]
[312864836,1706377832324,-155.0,0.00024685,2]
[312864838,1706377832336,-155.0,0.00024685,2]
[312864839,1706377832345,-155.0,0.00024685,2]
[312864840,1706377832354,-155.0,0.00024685,2]
[312864841,1706377832363,-155.0,0.00024686,2]
[312864842,1706377832372,-155.0,0.00024686,2]
[312864843,1706377832381,-155.0,0.00024686,2]
[312864845,1706377832390,-155.0,0.00024686,2]
[312864846,1706377832399,-155.0,0.00024687,2]
[312864847,1706377832408,-155.0,0.00024687,2]
[312864848,1706377832418,-174.64502428,0.00024688,2]
[312864849,1706377832426,-150.0,0.00024688,2]
[312864851,1706377832435,-150.0,0.00024688,2]
[312864852,1706377832444,-150.0,0.00024688,2]
[312864854,1706377832453,-150.0,0.00024688,2]
[312864856,1706377832462,-150.0,0.00024688,2]
[312864858,1706377832471,-150.0,0.00024688,2]
[312864860,1706377832480,-150.0,0.00024688,2]
[312864862,1706377832491,-150.0,0.00024688,2]
[312864864,1706377832499,-150.0,0.00024688,2]
[312864866,1706377832509,-150.0,0.00024688,2]
[312864869,1706377832518,-63.05339295,0.00024688,2]
[312864915,1706377838035,-86.94660705,0.00024688,2]
[312864917,1706377838046,-150.0,0.00024688,2]
[312864919,1706377838055,-150.0,0.00024688,2]
[312864921,1706377838065,-150.0,0.00024688,2]
[312864923,1706377838074,-150.0,0.00024688,2]
[312864925,1706377838083,-150.0,0.00024688,2]
[312864926,1706377838092,-150.0,0.00024688,2]
[312864927,1706377838101,-150.0,0.00024688,2]
[312864928,1706377838110,-150.0,0.00024688,2]
[312864929,1706377838120,-150.0,0.00024688,2]
[312864930,1706377838129,-150.0,0.00024688,2]
[312864931,1706377838139,-150.0,0.00024688,2]
[312864932,1706377838148,-150.0,0.00024688,2]
[312864933,1706377838157,-150.0,0.00024688,2]
[312864934,1706377838166,-150.0,0.00024688,2]
[312864935,1706377838175,-150.0,0.00024688,2]
[312864936,1706377838184,-150.0,0.00024688,2]
[312864937,1706377838193,-150.0,0.00024688,2]
[312864938,1706377838203,-150.0,0.00024688,2]
[312864939,1706377838212,-150.0,0.00024688,2]
[312864940,1706377838221,-150.0,0.00024688,2]
[312864941,1706377838231,-150.78141213,0.00024688,2]
[312864942,1706377838240,-178.15674416,0.0002469,2]
[312864943,1706377838249,-204.7712179,0.00024691,2]
[312864944,1706377838259,-173.86238196,0.00024697,2]
[312864945,1706377838268,-150.0,0.00024792,2]
[312864946,1706377838277,-158.8089,0.00024799,2]
[312864947,1706377838287,-1262.71758815,0.00024899,2]
[312864948,1706377838296,-393.15011915,0.000249,2]
[312864949,1706377838305,-550.0,0.00025,3]
[312864950,1706377838315,-1008.4692958,0.00025,2]
[312864951,1706377838328,-991.5307042,0.00025,2]
[312864952,1706377838337,-453.86,0.00025,2]
[312864953,1706377838346,-2000.0,0.00026,2]
[312864954,1706377838355,-173.86238193,0.00026015,2]
[312864955,1706377838365,-200.0,0.00026742,2]
[312864956,1706377838374,-162.51,0.00026876,2]
[312864957,1706377838383,-2000.0,0.00027,2]
[312864958,1706377838393,-210.0,0.00027271,2]
[312864959,1706377838402,-173.86238193,0.00027334,2]
[312864960,1706377838411,-2000.0,0.00028,2]
[312864961,1706377838421,-173.86238193,0.00028652,2]
[312864962,1706377838431,-2000.0,0.00029,2]
[312864963,1706377838441,-1770.0,0.000299,2]
[312864964,1706377838450,-623.18,0.000299,2]
[312864965,1706377838460,-72.46071163,0.000299,2]
[312864967,1706377838472,-2800.53928837,0.000299,2]
[312864969,1706377838481,-173.86238193,0.0002997,2]
[312864971,1706377838490,-225.5983277,0.00029998,2]
[312864973,1706377838505,-67.4016723,0.00029998,2]
[312864976,1706377838514,-2000.0,0.0003,2]
[312864978,1706377838524,-155.0,0.0003,2]
[312864980,1706377838533,-175.99,0.00030773,2]
[312864982,1706377838543,-2000.0,0.00031,2]
[312864984,1706377838554,-412.48,0.00031038,2]
[312864986,1706377838563,-247.98919239,0.00031287,2]
[312864989,1706377838582,-791.67515937,0.00031287,2]
[312864991,1706377838593,-1022.86018424,0.00031287,2]
[312865111,1706377840578,-21837.475464,0.00031287,2]
[312865112,1706377840587,-173.86238193,0.00031289,2]
[312865113,1706377840597,-150.14,0.00031607,2]
[312865115,1706377840606,-170.51,0.00031832,2]
[312865116,1706377840615,-373.16,0.00031845,2]
[312865117,1706377840624,-2000.0,0.00032,2]
[312865118,1706377840633,-170.51,0.00032016,2]
[312865119,1706377840642,-151.56,0.000321,2]
[312865120,1706377840650,-200.0,0.00032129,2]
[312865121,1706377840659,-165.29,0.00032146,2]
[312865122,1706377840668,-170.51,0.000322,2]
[312865123,1706377840677,-966.19,0.0003223,2]
[312865124,1706377840686,-200.0,0.0003223,2]
[312865125,1706377840695,-1360.84061075,0.00032248,3]
[312865126,1706377840705,-151.56,0.00032252,2]
[312865127,1706377840714,-200.0,0.00032276,2]
[312865128,1706377840723,-170.51,0.00032384,2]
[312865129,1706377840732,-151.56,0.00032404,2]
[312865130,1706377840741,-2000.0,0.00032448,2]
[312865131,1706377840750,-164.74985388,0.00032549,4]
[312865132,1706377840759,-155.44142013,0.00032549,2]
[312865133,1706377840768,-151.56,0.00032556,2]
[312865134,1706377840778,-170.51,0.00032568,2]
[312865135,1706377840787,-412.48,0.0003259,2]
[312865136,1706377840796,-173.86238193,0.00032607,2]
[312865137,1706377840805,-151.56,0.00032708,2]
[312865138,1706377840814,-170.51,0.00032752,2]
[312865139,1706377840823,-151.56,0.0003286,2]
[312865140,1706377840833,-150.0,0.00032872,2]
[312865141,1706377840842,-170.51,0.00032936,2]
[312865142,1706377840851,-411.0,0.00032998,3]
[312865143,1706377840861,-2000.0,0.00033,2]
[312865144,1706377840870,-151.56,0.00033012,2]
[312865145,1706377840879,-213.83,0.00033023,2]
[312865146,1706377840888,-200.0,0.00033039,2]
[312865147,1706377840897,-760.22,0.00033055,2]
[312865148,1706377840907,-170.51,0.0003312,2]
[312865149,1706377840916,-412.9450634,0.00033122,4]
[312865150,1706377840925,-151.56,0.00033164,2]
[312865151,1706377840934,-170.51,0.00033304,2]
[312865152,1706377840943,-151.56,0.00033316,2]
[312865153,1706377840952,-155.50013682,0.00033403,2]
[312865154,1706377840962,-151.56,0.00033468,2]
[312865155,1706377840975,-213.83,0.0003348,2]
[312865156,1706377840984,-170.51,0.00033488,2]
[312865157,1706377840993,-152.25,0.000335,2]
[312865158,1706377841002,-152.25,0.000335,2]
[312865159,1706377841012,-152.25,0.000335,2]
[312865160,1706377841021,-162.51,0.00033595,2]
[312865161,1706377841030,-151.56,0.0003362,2]
[312865162,1706377841039,-1043.21600623,0.00033735,2]
[312865163,1706377841053,-673.18399377,0.00033735,2]
[312865164,1706377841063,-170.75,0.00033747,2]
[312865165,1706377841072,-151.56,0.00033772,2]
[312865166,1706377841081,-173.86238193,0.00033926,2]
[312865167,1706377841090,-213.83,0.00033936,2]
[312865168,1706377841099,-620.53554844,0.00033991,2]
[312865169,1706377841111,-714.99445156,0.00033991,2]
[312865170,1706377841120,-95.16554844,0.00034,2]
[312865171,1706377841132,-500.0,0.00034,2]
[312865172,1706377841143,-1404.83445156,0.00034,2]
[312865173,1706377841152,-373.16,0.00034109,2]
[312865174,1706377841161,-412.48,0.00034142,2]
[312865175,1706377841171,-213.83,0.00034393,2]
[312865176,1706377841179,-163.88,0.00034424,2]
[312865177,1706377841188,-213.83,0.0003485,2]
[312865178,1706377841198,-2000.0,0.00035,2]
[312865179,1706377841206,-3000.0,0.00035,2]
[312865180,1706377841215,-173.86238193,0.00035244,2]
[312865181,1706377841225,-213.83,0.00035306,2]
[312865182,1706377841234,-166.74,0.0003565,15]
[312865183,1706377841243,-250.0,0.0003567,2]
[312865184,1706377841252,-250.0,0.00035684,2]
[312865185,1706377841261,-412.48,0.00035694,2]
[312865186,1706377841270,-150.14,0.00035717,2]
[312865187,1706377841280,-213.83,0.00035763,120]
[312865188,1706377841288,-169.70963126,0.00035804,4]
[312865189,1706377841297,-2000.0,0.00036,2]
[312865190,1706377841307,-203.37710716,0.00036166,4]
[312865191,1706377841316,-160.91608575,0.00036166,4]
[312865192,1706377841325,-407.24558146,0.00036166,4]
[312865193,1706377841334,-155.0,0.00036166,4]
[312865194,1706377841343,-191.19525719,0.00036166,4]
[312865195,1706377841352,-186.0402776,0.00036166,4]
[312865196,1706377841361,-155.0,0.00036166,4]